bitfinex/quotes_SOLUSD_20241016
["timestamp","ask_amount","ask_price","bid_price","bid_amount"]
[1729056626301,6.4773,154.39,154.29,11.63923017]
[1729056626302,76.5066,154.38,154.31,16.2003]
[1729056626616,82.9841,154.38,154.34,6.4792]
[1729056626820,76.5066,154.38,154.29,11.63923017]
[1729056627002,15.9227,154.41,154.31,11.63923017]
[1729056627203,15.9227,154.41,154.37,6.4775]
[1729056627594,15.9227,154.41,154.38,6.4774]
[1729056633300,15.9227,154.41,154.39,6.4768]
[1729056633923,15.9227,154.41,154.38,6.4774]
[1729056636016,70.0,154.37,154.34,16.1978]
[1729056636326,85.4847,154.34,154.29,6.4811]
[1729056636702,85.4847,154.34,154.3,6.4806]
[1729056637914,15.4847,154.34,154.32,6.4799]
[1729056638122,70.0,154.36,154.31,16.2011]
[1729056639512,70.0,154.36,154.33,6.4796]
[1729056639920,70.0,154.36,154.32,6.48]
[1729056646137,23.776884,154.37,154.33,6.4795]
[1729056646437,91.9622,154.38,154.27,48.4542]
[1729056646438,15.4847,154.38,154.35,6.4785]
[1729056646739,85.4847,154.38,154.35,6.4785]
[1729056647139,15.4847,154.38,154.35,6.4785]
[1729056647330,76.4767,154.4,154.35,6.4785]
[1729056647823,23.776884,154.39,154.35,6.4785]
[1729056655824,70.0,154.38,154.34,22.6766]
[1729056661252,70.0,154.38,154.34,16.1975]
[1729056661549,70.0,154.4,154.36,16.1952]
[1729056661845,70.0,154.4,154.38,6.4773]
[1729056662222,70.0,154.4,154.37,6.4778]
[1729056663262,70.0,154.4,154.33,16.1986]
[1729056663263,70.0,154.37,154.33,16.1986]
[1729056663552,76.478,154.37,154.33,16.1986]
[1729056664129,76.478,154.37,154.33,22.6781]
[1729056664362,76.478,154.37,154.33,16.1986]
[1729056664852,70.0,154.35,154.31,6.4804]
[1729056667859,70.0,154.35,154.32,6.48]
[1729056683170,70.0,154.35,154.3,16.2021]
[1729056683463,70.0,154.33,154.3,16.2021]
[1729056691160,76.4797,154.33,154.28,6.4816]
[1729056694497,70.0,154.31,154.27,22.687]
[1729056695575,70.0,154.31,154.28,6.4817]
[1729056698380,16.4956,154.36,154.29,11.63923017]
[1729056698771,16.4956,154.36,154.33,6.4795]
[1729056698971,70.0,154.35,154.31,16.2001]
[1729056700383,76.4789,154.35,154.31,16.2001]
[1729056710508,70.0,154.32,154.28,6.4816]
[1729056711373,70.0,154.32,154.27,16.2049]
[1729056711698,76.4802,154.32,154.27,22.6869]
[1729056720774,70.0,154.3,154.27,16.2049]
[1729056721481,70.0,154.28,154.24,16.2082]
[1729056721788,70.0,154.24,154.2,22.6973]
[1729056730916,76.4835,154.24,154.2,16.2124]
[1729056731622,76.4835,154.24,154.2,22.6974]
[1729056732308,70.0,154.24,154.2,22.6974]
[1729056732508,70.0,154.24,154.2,16.2124]
[1729056732717,76.4826,154.26,154.22,6.4842]
[1729056733011,70.0,154.3,154.24,11.63923017]
[1729056733210,70.0,154.3,154.26,6.4825]
[1729056733513,70.0,154.3,154.25,16.2071]
[1729056734514,70.0,154.3,154.26,6.4824]
[1729056735211,76.4811,154.3,154.25,16.2071]
[1729056735385,83.21578015,154.3,154.25,16.2071]
[1729056735810,70.0,154.28,154.24,6.4831]
[1729056736017,70.0,154.26,154.22,16.2103]
[1729056736226,76.4826,154.26,154.22,16.2103]
[1729056739505,70.0,154.26,154.22,22.6945]
[1729056741011,6.4822,154.27,154.22,22.6945]
[1729056744017,6.4822,154.27,154.23,6.4838]
[1729056745615,70.0,154.28,154.23,6.4838]
[1729056745822,76.4818,154.28,154.23,6.4838]
[1729056760312,70.0,154.28,154.25,6.4826]
[1729056760625,70.0,154.3,154.24,16.2077]
[1729056760831,70.0,154.28,154.24,16.2077]
[1729056761013,6.4825,154.26,154.21,22.6955]
[1729056761200,6.4825,154.26,154.22,6.4841]
[1729056761814,76.4825,154.26,154.21,22.6958]
[1729056766325,6.483,154.25,154.21,22.6958]
[1729056776027,70.0,154.26,154.21,27.85043017]
[1729056776228,70.0,154.28,154.25,6.4828]
[1729056776417,6.4813,154.29,154.25,6.4828]
[1729056778919,70.0,154.28,154.23,16.2089]
[1729056779133,70.0,154.28,154.23,22.6923]
[1729056782651,76.4809,154.3,154.23,27.84813017]
[1729056782943,6.4805,154.31,154.25,27.84593017]
[1729056783126,6.4805,154.31,154.26,6.4824]
[1729056796655,70.0,154.34,154.27,16.2047]
[1729056796849,70.0,154.34,154.29,6.4809]
[1729056796850,76.4792,154.34,154.29,6.4809]
[1729056797354,76.4792,154.34,154.27,16.2047]
[1729056797550,76.4792,154.34,154.27,27.84393017]
[1729056798353,76.4792,154.34,154.29,6.4811]
[1729056798869,76.4792,154.34,154.28,6.4814]
[1729056798870,6.4797,154.33,154.28,6.4814]
[1729056801857,6.4797,154.33,154.29,18.12043017]
[1729056802433,70.0,154.34,154.29,11.63923017]
[1729056802748,76.4793,154.34,154.29,6.4812]
[1729056805148,76.48,154.32,154.27,22.6864]
[1729056806864,76.48,154.32,154.28,6.4816]
[1729056810444,6.72996648,154.34,154.28,6.4816]
[1729056810445,76.72996648,154.34,154.3,6.4808]
[1729056810663,70.0,154.36,154.31,6.4802]
[1729056810849,76.4776,154.38,154.33,6.4795]
[1729056811372,16.4717,154.39,154.35,6.4787]
[1729056811554,70.0,154.4,154.36,6.4782]
[1729056812270,70.0,154.42,154.36,11.63923017]
[1729056812441,70.0,154.44,154.4,18.11543017]
[1729056812641,70.0,154.47,154.43,6.4754]
[1729056812844,70.0,154.47,154.44,6.4748]
[1729056813255,70.0,154.47,154.42,6.4754]
[1729056813648,70.0,154.47,154.41,27.82883017]
[1729056813864,70.0,154.47,154.43,6.4754]
[1729056814857,70.0,154.47,154.42,6.4758]
[1729056818367,76.475,154.44,154.38,12.8128]
[1729056818676,6.4755,154.43,154.38,6.4775]
[1729056821759,6.4758,154.42,154.37,22.6719]
[1729056822275,76.4758,154.42,154.37,16.1941]
[1729056826867,76.4758,154.42,154.37,22.6719]
[1729056827365,76.4748,154.45,154.39,6.4769]
[1729056827678,50.251884,154.44,154.39,6.4769]
[1729056829960,76.4756,154.43,154.37,22.6717]
[1729056833467,6.4762,154.41,154.37,16.1941]
[1729056833858,6.4766,154.4,154.35,6.4787]
[1729056834065,6.4775,154.38,154.34,16.1976]
[1729056837699,76.478,154.37,154.32,6.4799]
[1729056837861,0.1,154.41,154.3,18.22183017]
[1729056837862,70.0,154.35,154.3,6.4805]
[1729056839489,6.4792,154.34,154.3,6.4805]
[1729056839686,70.0,154.35,154.3,6.4805]
[1729056839987,76.4788,154.35,154.3,6.4805]
[1729056844022,70.0,154.35,154.31,6.4801]
[1729056844215,15.7054,154.37,154.3,16.2014]
[1729056844216,85.7054,154.37,154.3,16.2014]
[1729056844403,76.4779,154.37,154.32,6.48]
[1729056846807,76.4779,154.37,154.33,6.4795]
[1729056847612,76.4779,154.37,154.32,6.4799]
[1729056851219,6.4779,154.38,154.33,6.4793]
[1729056851735,6.478,154.37,154.33,6.4793]
[1729056852117,76.478,154.37,154.33,6.4793]
[1729056852625,76.478,154.37,154.31,6.4801]
[1729056852918,76.478,154.37,154.3,16.2014]
[1729056853228,76.478,154.37,154.32,6.48]
[1729056854898,6.478,154.37,154.32,6.48]
[1729056855235,15.5963,154.41,154.36,6.4783]
[1729056855236,6.4767,154.4,154.36,6.4783]
[1729056856428,70.0,154.41,154.37,6.4779]
[1729056856925,70.0,154.43,154.37,11.63923017]
[1729056857127,93.0903,154.45,154.4,6.4765]
[1729056857334,6.4742,154.46,154.41,6.4762]
[1729056858526,23.776884,154.45,154.41,6.4762]
[1729056859404,6.4742,154.46,154.41,18.11543017]
[1729056859911,23.776884,154.46,154.42,6.4758]
[1729056861122,26.4733,154.48,154.43,6.4753]
[1729056862602,23.776884,154.47,154.43,6.4753]
[1729056863498,23.776884,154.48,154.44,6.4748]
[1729056863701,30.250184,154.48,154.44,6.4748]
[1729056863924,70.0,154.49,154.45,6.4744]
[1729056865606,70.0,154.49,154.43,27.82733017]
[1729056865829,76.4729,154.49,154.44,6.4749]
[1729056866703,6.4729,154.49,154.44,6.4749]
[1729056868815,76.4729,154.49,154.44,6.4749]
[1729056871214,70.0,154.51,154.45,11.63923017]
[1729056871421,76.4721,154.51,154.46,6.474]
[1729056872413,70.0,154.51,154.45,27.82493017]
[1729056872614,6.4726,154.5,154.45,34.29943017]
[1729056873817,23.776884,154.5,154.45,16.1857]
[1729056874025,6.4729,154.49,154.45,16.1857]
[1729056874435,6.4729,154.49,154.45,22.6602]
[1729056874613,30.249384,154.5,154.45,22.6602]
[1729056878530,76.4729,154.49,154.45,16.1857]
[1729056880829,76.4729,154.49,154.45,22.6601]
[1729056885437,76.4729,154.49,154.45,16.1857]
[1729056886139,70.0,154.49,154.42,11.63923017]
[1729056886447,6.4743,154.46,154.42,16.1891]
[1729056888643,6.4743,154.46,154.42,22.6648]
[1729056888840,76.4738,154.47,154.42,22.6648]
[1729056889035,23.776884,154.46,154.42,22.6648]
[1729056899648,23.776884,154.46,154.43,6.4754]
[1729056906131,70.0,154.49,154.42,27.82833017]
[1729056906332,23.776884,154.48,154.44,6.4749]
[1729056906862,23.776884,154.48,154.45,6.4744]
[1729056907156,70.0,154.53,154.46,11.63923017]
[1729056907334,70.0,154.53,154.5,6.4724]
[1729056907540,70.0,154.53,154.49,6.4728]
[1729056910343,70.0,154.53,154.48,11.63923017]
[1729056910540,43.776884,154.54,154.5,6.4723]
[1729056910747,43.776884,154.54,154.51,6.4716]
[1729056910963,70.0,154.55,154.51,6.472]
[1729056911847,20.0,154.55,154.52,6.4715]
[1729056913762,23.776884,154.54,154.5,16.1812]
[1729056914162,30.247684,154.54,154.5,16.1812]
[1729056914355,23.776884,154.54,154.5,22.6535]
[1729056916465,30.247684,154.54,154.5,22.6535]
[1729056916760,76.4712,154.53,154.47,16.1841]
[1729056916969,70.0,154.53,154.47,16.1841]
[1729056917151,70.0,154.53,154.49,6.4728]
[1729056917351,76.4712,154.53,154.49,6.4728]
[1729056919469,76.4712,154.53,154.47,16.1841]
[1729056919642,30.248684,154.52,154.47,22.6574]
[1729056920047,30.248684,154.52,154.48,6.4733]
[1729056920263,23.776884,154.52,154.48,6.4733]
[1729056921245,70.0,154.51,154.47,22.6577]
[1729056921444,76.4721,154.51,154.47,22.6577]
[1729056922943,30.249384,154.5,154.45,6.4745]
[1729056923161,76.4732,154.49,154.44,22.6621]
[1729056923477,70.0,154.47,154.42,6.4755]
[1729056923651,76.4739,154.47,154.42,6.4755]
[1729056924046,23.776884,154.46,154.42,6.4758]
[1729056924975,30.250984,154.46,154.41,16.1906]
[1729056925159,30.250984,154.46,154.42,6.4757]
[1729056925663,76.4746,154.45,154.41,16.1906]
[1729056931455,23.776884,154.44,154.41,16.1906]
[1729056933268,23.776884,154.44,154.4,6.4763]
[1729056935174,70.0,154.43,154.39,6.4769]
[1729056935564,23.776884,154.42,154.38,16.1934]
[1729056936376,70.0,154.4,154.35,48.5894]
[1729056936578,70.0,154.4,154.35,22.6748]
[1729056937258,76.477,154.4,154.35,22.6748]
[1729056940369,70.0,154.38,154.35,16.1965]
[1729056958702,70.0,154.38,154.36,6.4783]
[1729056959077,70.0,154.38,154.35,22.6752]
[1729056964502,23.776884,154.39,154.35,22.6752]
[1729056966086,23.776884,154.39,154.36,6.4783]
[1729056968086,70.0,154.4,154.36,6.4783]
[1729056968289,70.0,154.4,154.37,6.4777]
[1729056973603,70.0,154.4,154.36,6.4782]
[1729056974889,76.4777,154.38,154.34,6.4787]
[1729056975091,70.0,154.38,154.32,31.7726]
[1729056975389,70.0,154.38,154.35,6.4786]
[1729056979912,30.253984,154.39,154.35,6.4786]
[1729056980615,76.75057894,154.4,154.34,16.1972]
[1729056980814,76.75057894,154.4,154.37,6.4779]
[1729056981021,76.75057894,154.4,154.36,6.4782]
[1729056986231,76.75057894,154.4,154.34,16.1972]
[1729056986232,30.253984,154.39,154.35,6.4786]
[1729056986603,23.776884,154.39,154.35,6.4786]
[1729056990901,30.254284,154.39,154.34,16.1972]
[1729056991108,76.4775,154.38,154.34,22.6762]
[1729056995227,70.0,154.34,154.31,16.2007]
[1729056995430,6.4796,154.33,154.28,22.6852]
[1729056995801,6.4796,154.33,154.29,6.4812]
[1729056996208,76.4792,154.34,154.29,6.4812]
[1729056996825,6.4797,154.33,154.28,22.6855]
[1729056997037,6.4797,154.33,154.28,16.2039]
[1729056997214,6.4797,154.33,154.29,6.4812]
[1729056997925,86.2901,154.36,154.3,16.2014]
[1729056998144,70.0,154.36,154.32,6.4798]
[1729057000244,76.4799,154.33,154.28,6.4816]
[1729057000427,70.0,154.33,154.29,6.4812]
[1729057001942,76.4797,154.33,154.29,6.4812]
[1729057002317,76.4797,154.33,154.27,27.84423017]
[1729057002318,6.4801,154.32,154.27,22.687]
[1729057002518,40.066984,154.35,154.27,16.205]
[1729057002519,76.4805,154.31,154.27,16.205]
[1729057002749,70.0,154.29,154.23,44.05653017]
[1729057002923,70.0,154.27,154.23,16.209]
[1729057003324,6.4829,154.26,154.21,16.4798]
[1729057003525,70.0,154.27,154.22,6.484]
[1729057005256,70.0,154.29,154.22,11.63923017]
[1729057005549,23.776884,154.3,154.26,6.4825]
[1729057006734,30.257784,154.3,154.25,6.4829]
[1729057006931,70.0,154.31,154.27,6.4817]
[1729057007135,70.0,154.31,154.28,6.4813]
[1729057007423,76.4796,154.33,154.28,6.4813]
[1729057008628,23.776884,154.32,154.28,6.4813]
[1729057012041,70.0,154.33,154.28,11.63923017]
[1729057012252,70.0,154.33,154.3,6.4808]
[1729057012442,70.0,154.33,154.29,6.4812]
[1729057013749,70.0,154.37,154.3,27.84133017]
[1729057015148,23.776884,154.36,154.3,27.84133017]
[1729057015346,23.776884,154.36,154.33,6.4796]
[1729057021141,6.4785,154.36,154.31,18.11943017]
[1729057021548,83.23007021,154.37,154.31,11.63923017]
[1729057021740,83.23007021,154.37,154.32,6.4799]
[1729057024148,70.0,154.34,154.3,22.6826]
[1729057024374,70.0,154.34,154.3,16.2021]
[1729057024541,76.4792,154.34,154.3,16.2021]
[1729057025741,76.4792,154.34,154.3,22.6829]
[1729057026543,6.4788,154.35,154.3,16.2021]
[1729057026745,6.75207021,154.37,154.34,6.479]
[1729057026937,6.75207021,154.37,154.33,27.83793017]
[1729057027135,70.0,154.38,154.34,6.4791]
[1729057029751,70.0,154.38,154.33,27.83793017]
[1729057029962,76.4777,154.38,154.33,22.6783]
[1729057030468,6.4779,154.37,154.33,16.1987]
[1729057030671,76.75101195,154.38,154.29,18.20333017]
[1729057030975,6.4788,154.35,154.31,6.4803]
[1729057031472,70.0,154.36,154.32,6.4799]
[1729057031679,6.4783,154.37,154.32,6.4799]
[1729057032350,76.75101195,154.38,154.31,11.63923017]
[1729057032549,76.75101195,154.38,154.34,6.479]
[1729057032751,76.75101195,154.38,154.32,16.1991]
[1729057032947,83.22861195,154.38,154.33,6.4795]
[1729057033169,23.776884,154.37,154.32,22.679]
[1729057033359,6.478,154.37,154.33,6.4795]
[1729057035758,43.776884,154.35,154.26,16.1569]
[1729057035967,43.776884,154.35,154.28,16.2036]
[1729057035968,6.4802,154.32,154.28,16.2036]
[1729057036186,6.4802,154.32,154.28,22.6852]
[1729057036360,76.4796,154.33,154.28,22.6852]
[1729057036852,76.4796,154.33,154.26,27.79613017]
[1729057036853,26.4784,154.36,154.32,6.48]
[1729057037059,26.4784,154.36,154.31,22.6814]
[1729057037962,76.478,154.37,154.32,6.4798]
[1729057038177,76.478,154.37,154.33,6.4795]
[1729057039578,76.478,154.37,154.32,18.11923017]
[1729057039779,76.478,154.37,154.32,6.48]
[1729057042677,15.2956,154.41,154.32,6.48]
[1729057042678,85.2956,154.41,154.33,16.1982]
[1729057042884,85.2956,154.41,154.35,16.1961]
[1729057042885,70.0,154.41,154.35,16.1961]
[1729057043088,70.0,154.41,154.34,18.1601122]
[1729057043089,76.4757,154.43,154.39,6.477]
[1729057043271,6.4751,154.44,154.4,6.4766]
[1729057043864,70.0,154.45,154.4,6.4766]
[1729057044061,76.4738,154.47,154.42,6.4758]
[1729057045369,20.0,154.46,154.42,6.4758]
[1729057054303,76.4766,154.41,154.36,22.6738]
[1729057059799,70.0,154.41,154.36,22.6738]
[1729057059981,6.4767,154.4,154.36,22.6738]
[1729057061883,76.4763,154.41,154.36,22.6738]
[1729057063796,23.776884,154.4,154.36,16.1955]
[1729057063993,30.253784,154.4,154.36,16.1955]
[1729057066708,23.776884,154.4,154.36,16.1955]
[1729057066885,6.4771,154.39,154.36,16.1955]
[1729057068211,30.253584,154.4,154.36,16.1955]
[1729057069482,6.4776,154.38,154.34,6.4791]
[1729057070110,6.4779,154.37,154.33,22.6782]
[1729057070313,6.4784,154.36,154.31,6.4801]
[1729057070494,6.4784,154.36,154.32,6.48]
[1729057070807,76.478,154.37,154.32,6.48]
[1729057072196,6.4784,154.36,154.32,6.48]
[1729057074715,70.0,154.37,154.3,16.2017]
[1729057074888,76.4788,154.35,154.3,22.6823]
[1729057076994,76.4788,154.35,154.31,6.4803]
[1729057080311,16.1281,154.37,154.33,6.4794]
[1729057080312,76.4779,154.37,154.33,6.4794]
[1729057080721,70.0,154.37,154.33,6.4794]
[1729057080909,86.3556,154.41,154.35,16.1969]
[1729057081108,92.8322,154.41,154.36,6.4779]
[1729057081306,6.4767,154.4,154.36,6.4779]
[1729057082420,86.3556,154.41,154.37,6.4778]
[1729057082719,76.4745,154.45,154.4,6.4766]
[1729057084204,70.0,154.43,154.38,16.1934]
[1729057084516,30.252784,154.42,154.38,16.1934]
[1729057086521,6.4764,154.41,154.34,36.1971]
[1729057086691,6.4764,154.41,154.37,6.4779]
[1729057087015,23.776884,154.42,154.37,6.4779]
[1729057087797,20.0,154.44,154.39,16.1921]
[1729057087997,6.75471945,154.45,154.39,16.1921]
[1729057088214,76.4737,154.47,154.43,6.4754]
[1729057089131,20.0,154.46,154.43,6.4754]
[1729057094433,20.0,154.46,154.41,16.1898]
[1729057094612,20.0,154.46,154.42,6.4757]
[1729057099322,26.4744,154.46,154.41,22.6657]
[1729057101031,26.4744,154.46,154.42,6.4757]
[1729057102840,6.4746,154.45,154.41,16.1898]
[1729057103047,6.4751,154.44,154.39,6.477]
[1729057109730,6.4751,154.44,154.4,6.4766]
[1729057112846,23.776884,154.44,154.4,6.4766]
[1729057118258,20.0,154.46,154.42,6.4754]
[1729057118461,20.0,154.46,154.4,16.1911]
[1729057119459,20.0,154.46,154.43,6.4753]
[1729057122444,20.0,154.46,154.42,6.4758]
[1729057128058,30.250484,154.48,154.44,6.4749]
[1729057128549,30.250484,154.48,154.39,27.67100417]
[1729057128550,70.0,154.49,154.46,6.4738]
[1729057128864,76.4717,154.52,154.48,6.4733]
[1729057129964,76.4717,154.52,154.47,6.4737]
[1729057130151,23.776884,154.51,154.47,6.4737]
[1729057130545,76.4717,154.52,154.47,6.4737]
[1729057131754,23.776884,154.51,154.47,6.4737]
[1729057135563,23.776884,154.51,154.48,6.4733]
[1729057140065,23.776884,154.51,154.45,16.1857]
[1729057140268,23.776884,154.51,154.47,6.4736]
[1729057143957,76.4717,154.52,154.47,6.4736]
[1729057144249,23.776884,154.51,154.48,6.4733]
[1729057145368,85.5161,154.54,154.5,6.4724]
[1729057145553,70.0,154.54,154.5,6.4724]
[1729057145974,70.0,154.54,154.48,16.1833]
[1729057146272,76.4709,154.54,154.49,6.4728]
[1729057146669,23.776884,154.53,154.49,6.4728]
[1729057148448,23.776884,154.53,154.5,6.4724]
[1729057153080,23.776884,154.54,154.51,6.4719]
[1729057156074,20.0,154.55,154.52,6.4716]
[1729057161775,76.4675,154.62,154.57,6.4695]
[1729057161986,70.6251651,154.67,154.55,11.71610417]
[1729057162274,6.4659,154.66,154.59,16.1709]
[1729057162458,77.37724186,154.67,154.59,16.1709]
[1729057162661,83.84264186,154.67,154.61,6.4677]
[1729057162881,0.13289434,154.62,154.61,6.4677]
[1729057163072,0.02267457,154.65,154.61,6.4677]
[1729057163285,0.02267457,154.65,154.62,6.4673]
[1729057163484,0.02267457,154.65,154.6,6.4678]
[1729057164179,70.02267457,154.65,154.6,6.4678]
[1729057165603,23.776884,154.64,154.59,16.1709]
[1729057165982,0.02267457,154.65,154.62,16.1685]
[1729057166501,0.02267457,154.65,154.64,6.4666]
[1729057170807,0.02267457,154.65,154.64,42.8987]
[1729057171016,0.02267457,154.65,154.64,42.9987]
[1729057172206,0.02267457,154.65,154.64,43.0987]
[1729057172505,0.02267457,154.65,154.64,78.49168817]
[1729057173009,7.457e-05,154.65,154.64,78.49168817]
[1729057173206,0.12497979,154.66,154.65,26.5662]
[1729057173413,0.12497979,154.66,154.65,27.85872316]
[1729057175316,0.12497979,154.66,154.65,26.4662]
[1729057175511,0.12497979,154.66,154.65,26.5662]
[1729057176123,0.12497979,154.66,154.65,26.4662]
[1729057177415,0.38125787,154.67,154.66,6.4657]
[1729057182921,0.51128774,154.67,154.66,6.4657]
[1729057183825,0.38017476,154.67,154.66,6.4657]
[1729057184023,0.38017476,154.67,154.65,16.1651]
[1729057184234,0.38017476,154.67,154.65,22.6312]
[1729057186726,0.38017476,154.67,154.66,6.4657]
[1729057187229,0.38017476,154.67,154.63,6.4666]
[1729057187431,0.38017476,154.67,154.62,16.1684]
[1729057187621,0.38017476,154.67,154.65,6.4661]
[1729057188121,0.38017476,154.67,154.66,6.4657]
[1729057192640,0.38017476,154.67,154.64,22.6321]
[1729057192929,0.38017476,154.67,154.64,16.1655]
[1729057198335,6.84557476,154.67,154.62,6.4674]
[1729057199046,6.84557476,154.67,154.63,6.467]
[1729057200643,0.38017476,154.67,154.61,16.1694]
[1729057200937,0.38017476,154.67,154.65,6.4661]
[1729057201313,0.38017476,154.67,154.64,16.1665]
[1729057201624,0.38017476,154.67,154.63,6.4666]
[1729057201936,6.84547476,154.67,154.62,6.4673]
[1729057202335,0.38017476,154.67,154.63,6.4668]
[1729057202521,30.62265876,154.67,154.62,6.4673]
[1729057202723,24.15705876,154.67,154.62,6.4673]
[1729057202925,0.13502156,154.63,154.61,16.1694]
[1729057203533,0.13502156,154.63,154.61,22.6372]
[1729057205935,0.13502156,154.63,154.62,6.4674]
[1729057206446,0.13502156,154.63,154.61,22.6371]
[1729057208126,0.13502156,154.63,154.62,6.4674]
[1729057212064,0.13502156,154.63,154.61,22.6371]
[1729057212218,0.13502156,154.63,154.59,6.4687]
[1729057212418,0.13502156,154.63,154.6,6.4682]
[1729057212638,23.91190556,154.63,154.59,6.4686]
[1729057214350,0.13502156,154.63,154.59,16.1711]
[1729057214640,0.13502156,154.63,154.62,6.4674]
[1729057222952,0.26924731,154.63,154.62,6.4674]
[1729057223841,0.13422575,154.63,154.62,6.4674]
[1729057226259,0.13422575,154.63,154.62,26.4674]
[1729057227041,0.13422575,154.63,154.62,26.5674]
[1729057228258,0.13422575,154.63,154.62,26.6674]
[1729057229736,0.13422575,154.63,154.62,50.444284]
[1729057229936,0.11849839,154.64,154.63,20.2]
[1729057230167,0.11849839,154.64,154.63,39.57577016]
[1729057230371,9.839e-05,154.64,154.63,63.35265416]
[1729057232359,9.839e-05,154.64,154.63,72.26545931]
[1729057232575,0.13137826,154.65,154.64,30.443484]
[1729057232773,0.11850937,154.66,154.65,55.59298817]
[1729057233068,0.11850937,154.66,154.65,63.3516148]
[1729057234143,0.11850937,154.66,154.65,26.6662]
[1729057234354,0.11850937,154.66,154.65,38.28230417]
[1729057234546,0.11850937,154.66,154.65,39.57494469]
[1729057237565,0.11850937,154.66,154.65,63.35182869]
[1729057238560,0.11850937,154.66,154.65,39.57494469]
[1729057238974,0.11850937,154.66,154.65,38.18230417]
[1729057239679,0.11850937,154.66,154.65,38.28230417]
[1729057240051,0.11850937,154.66,154.65,38.18230417]
[1729057240375,0.11850937,154.66,154.65,39.57495052]
[1729057240956,0.11850937,154.66,154.65,38.28230417]
[1729057241270,0.38464596,154.67,154.66,26.6657]
[1729057241473,0.38464596,154.67,154.66,27.95813064]
[1729057242173,16.3968,154.76,154.67,50.442184]
[1729057242360,16.3968,154.76,154.67,62.05828817]
[1729057242866,0.26030286,154.68,154.67,62.05828817]
[1729057243572,0.26030286,154.68,154.67,38.18140417]
[1729057243871,0.1248754,154.68,154.67,38.18140417]
[1729057244086,0.1248754,154.68,154.67,38.28140417]
[1729057244251,0.1248754,154.68,154.67,38.18140417]
[1729057244577,0.1248754,154.68,154.67,38.28140417]
[1729057250497,0.1248754,154.68,154.67,6.4653]
[1729057251768,0.1248754,154.68,154.67,26.4653]
[1729057253590,7.54e-05,154.68,154.67,26.4653]
[1729057253792,7.54e-05,154.68,154.67,26.6653]
[1729057256972,7.54e-05,154.68,154.67,38.28140417]
[1729057257661,7.54e-05,154.68,154.67,38.18140417]
[1729057258365,7.54e-05,154.68,154.67,38.28140417]
[1729057260195,7.54e-05,154.68,154.67,38.18140417]
[1729057260365,7.54e-05,154.68,154.67,38.28140417]
[1729057261184,0.12201745,154.69,154.68,20.2]
[1729057261383,0.1345728,154.7,154.69,0.2]
[1729057261605,0.11777448,154.71,154.7,26.6641]
[1729057262803,0.11777448,154.71,154.7,51.73305164]
[1729057262972,0.13362821,154.72,154.71,50.440584]
[1729057263401,0.13362821,154.72,154.71,62.05668817]
[1729057263897,16.3635,154.8,154.77,16.1521]
[1729057264099,22.8235,154.8,154.75,6.4619]
[1729057264487,16.3635,154.8,154.76,6.4615]
[1729057264998,22.8235,154.8,154.75,6.462]
[1729057265301,23.776884,154.75,154.67,0.1]
[1729057265601,23.776884,154.75,154.66,11.71610417]
[1729057266176,23.776884,154.75,154.71,16.1591]
[1729057266574,29.1773,154.77,154.71,22.6224]
[1729057266879,23.776884,154.76,154.72,6.4632]
[1729057269604,23.776884,154.76,154.71,16.1591]
[1729057270890,30.238484,154.76,154.71,22.6227]
[1729057276190,70.0,154.75,154.64,15.5096]
[1729057276398,6.4629,154.73,154.69,6.4645]